[Event "Snabb-SM för veteraner, 65+ 2019"]
[Site "Schackcentrum, Vegagatan 20, Gothenburg, Sweden"]
[Date "2019.10.05"]
[Round "6.5"]
[White "Landin, Bo"]
[Black "Przysuski, Feliks"]
[Result "1/2-1/2"]
[TimeControl "15 minutes + 10 seconds per move from move one"]
[WhiteFideId "1705261"]
[BlackFideId "1712489"]
[WhiteElo "1959"]
[BlackElo "2008"]

1. e4 {[%clk 00:15:15]} {[%emt 00:00:02]} c5 {[%clk 00:15:19]} 2. Nf3 {[%clk
00:15:23]} {[%emt 00:00:02]} e6 {[%clk 00:15:28]} {[%emt 00:00:01]} 3. d4
{[%clk 00:15:31]} {[%emt 00:00:02]} cxd4 {[%clk 00:15:37]} {[%emt 00:00:01]} 4.
Nxd4 {[%clk 00:15:39]} {[%emt 00:00:02]} a6 {[%clk 00:15:46]} 5. g3 {[%clk
00:15:48]} {[%emt 00:00:02]} Qc7 {[%clk 00:15:44]} {[%emt 00:00:12]} 6. Bg2
{[%clk 00:15:55]} {[%emt 00:00:03]} Nc6 {[%clk 00:15:47]} {[%emt 00:00:07]} 7.
Nc3 {[%clk 00:15:51]} {[%emt 00:00:14]} Nf6 {[%clk 00:15:48]} {[%emt 00:00:08]}
8. O-O {[%clk 00:15:56]} {[%emt 00:00:05]} Nxd4 {[%clk 00:15:51]} {[%emt
00:00:07]} 9. Qxd4 {[%clk 00:16:00]} {[%emt 00:00:05]} Bc5 {[%clk 00:15:59]}
{[%emt 00:00:02]} 10. Qd3 {[%clk 00:15:53]} {[%emt 00:00:18]} O-O {[%clk
00:15:56]} {[%emt 00:00:13]} 11. Bg5 {[%clk 00:15:23]} {[%emt 00:00:40]} Be7
{[%clk 00:15:52]} {[%emt 00:00:13]} 12. Rfe1 {[%clk 00:14:59]} {[%emt
00:00:35]} d6 {[%clk 00:16:00]} {[%emt 00:00:02]} 13. Rad1 {[%clk 00:15:03]}
{[%emt 00:00:06]} Rd8 {[%clk 00:16:07]} {[%emt 00:00:02]} 14. h3 {[%clk
00:14:31]} {[%emt 00:00:42]} Rb8 {[%clk 00:16:10]} {[%emt 00:00:07]} 15. a3
{[%clk 00:12:24]} {[%emt 00:02:18]} b5 {[%clk 00:16:16]} {[%emt 00:00:04]} 16.
Qe2 {[%clk 00:11:32]} {[%emt 00:01:02]} Bb7 {[%clk 00:15:57]} {[%emt 00:00:29]}
17. e5 {[%clk 00:10:17]} {[%emt 00:01:25]} dxe5 {[%clk 00:15:40]} {[%emt
00:00:26]} 18. Bxb7 {[%emt 00:00:28]} Rxb7 {[%clk 00:15:12]} {[%emt 00:00:36]}
19. Rxd8+ {[%clk 00:09:55]} {[%emt 00:00:17]} Qxd8 {[%clk 00:15:12]} {[%emt
00:00:08]} 20. Qxe5 {[%clk 00:09:51]} {[%emt 00:00:16]} h6 {[%clk 00:12:04]}
{[%emt 00:03:17]} 21. Rd1 {[%clk 00:09:16]} {[%emt 00:00:45]} Qc7 {[%clk
00:11:15]} {[%emt 00:00:59]} 22. Bf4 {[%clk 00:08:09]} {[%emt 00:01:18]} Qc6
{[%clk 00:10:43]} {[%emt 00:00:42]} 23. Rd3 {[%clk 00:07:42]} {[%emt 00:00:36]}
Nd7 {[%clk 00:09:27]} {[%emt 00:01:25]} 24. Qe4 {[%clk 00:07:21]} {[%emt
00:00:31]} Qc8 {[%clk 00:08:13]} {[%emt 00:01:24]} 25. Qe2 {[%clk 00:05:12]}
{[%emt 00:02:19]} Nc5 {[%clk 00:07:12]} {[%emt 00:01:10]} 26. Rd2 {[%clk
00:05:13]} {[%emt 00:00:10]} Rd7 {[%clk 00:05:16]} {[%emt 00:02:06]} 27. Qd1
{[%clk 00:04:39]} {[%emt 00:00:44]} Rxd2 {[%clk 00:05:09]} {[%emt 00:00:17]} 28.
Qxd2 {[%clk 00:04:46]} {[%emt 00:00:02]} Qc6 {[%clk 00:05:18]} 29. Be3 {[%clk
00:04:10]} {[%emt 00:00:47]} Nd7 {[%clk 00:05:03]} {[%emt 00:00:25]} 30. Qd3
{[%clk 00:03:06]} {[%emt 00:01:14]} Ne5 {[%clk 00:03:08]} {[%emt 00:02:04]} 31.
Qe4 {[%clk 00:02:46]} {[%emt 00:00:31]} Qxe4 {[%clk 00:03:10]} {[%emt
00:00:08]} 32. Nxe4 {[%clk 00:02:54]} {[%emt 00:00:01]} Nc4 {[%clk 00:03:15]}
{[%emt 00:00:05]} 33. Bc1 {[%clk 00:02:42]} {[%emt 00:00:22]} f5 {[%clk
00:03:10]} {[%emt 00:00:14]} 34. Nd2 {[%clk 00:02:25]} {[%emt 00:00:28]} Nxd2
{[%clk 00:02:59]} {[%emt 00:00:21]} 35. Bxd2 {[%clk 00:02:34]} {[%emt
00:00:01]} Bf6 {[%clk 00:03:03]} {[%emt 00:00:06]} 36. b3 {[%clk 00:02:31]}
{[%emt 00:00:14]} e5 {[%clk 00:03:08]} {[%emt 00:00:04]} 37. Kf1 {[%clk
00:02:37]} {[%emt 00:00:05]} Kf7 {[%clk 00:03:17]} 38. Ke2 {[%clk 00:02:45]}
{[%emt 00:00:02]} 1/2-1/2

[Event "Snabb-SM för veteraner, 65+ 2019"]
[Site "Schackcentrum, Vegagatan 20, Gothenburg, Sweden"]
[Date "2019.10.05"]
[Round "6.6"]
[White "Nyberg, Bo"]
[Black "Franzen, Thomas"]
[Result "1/2-1/2"]
[TimeControl "15 minutes + 10 seconds per move from move one"]
[WhiteFideId "1710583"]
[BlackFideId "1706039"]
[WhiteElo "1806"]
[BlackElo "1860"]

1. d4 {[%clk 00:15:17]} {[%emt 00:00:02]} Nf6 {[%clk 00:15:12]} {[%emt
00:00:08]} 2. Bf4 {[%clk 00:15:24]} {[%emt 00:00:03]} d6 {[%clk 00:15:13]}
{[%emt 00:00:09]} 3. e3 {[%clk 00:15:26]} {[%emt 00:00:08]} g6 {[%clk
00:15:17]} {[%emt 00:00:06]} 4. Nf3 {[%clk 00:15:32]} {[%emt 00:00:03]} Bg7
{[%clk 00:15:23]} {[%emt 00:00:03]} 5. c3 {[%clk 00:15:38]} {[%emt 00:00:04]}
O-O {[%clk 00:15:24]} {[%emt 00:00:09]} 6. Bc4 {[%clk 00:15:41]} {[%emt
00:00:07]} c6 {[%clk 00:15:28]} {[%emt 00:00:07]} 7. O-O {[%clk 00:15:46]}
{[%emt 00:00:05]} Nbd7 {[%clk 00:15:16]} {[%emt 00:00:22]} 8. Nbd2 {[%clk
00:15:15]} {[%emt 00:00:40]} Nh5 {[%clk 00:15:16]} {[%emt 00:00:10]} 9. Bg5
{[%clk 00:15:11]} {[%emt 00:00:14]} b5 {[%clk 00:14:25]} {[%emt 00:01:01]} 10.
Bb3 {[%clk 00:15:10]} {[%emt 00:00:11]} a5 {[%clk 00:14:32]} {[%emt 00:00:03]}
11. a3 {[%clk 00:15:12]} {[%emt 00:00:07]} h6 {[%clk 00:14:17]} {[%emt
00:00:26]} 12. Bh4 {[%clk 00:15:10]} {[%emt 00:00:11]} Nb6 {[%clk 00:14:21]}
{[%emt 00:00:07]} 13. Rc1 {[%clk 00:14:18]} {[%emt 00:01:02]} Kh7 {[%clk
00:14:19]} {[%emt 00:00:11]} 14. Bc2 {[%clk 00:14:16]} {[%emt 00:00:13]} d5
{[%clk 00:13:40]} {[%emt 00:00:50]} 15. Ne5 {[%clk 00:13:50]} {[%emt 00:00:35]}
Bxe5 {[%clk 00:12:46]} {[%emt 00:01:04]} 16. dxe5 {[%clk 00:13:57]} {[%emt
00:00:03]} f5 {[%clk 00:12:43]} {[%emt 00:00:13]} 17. exf6 {[%clk 00:13:57]}
{[%emt 00:00:10]} Nxf6 {[%clk 00:12:20]} {[%emt 00:00:33]} 18. e4 {[%clk
00:12:12]} {[%emt 00:01:56]} Qd6 {[%clk 00:10:12]} {[%emt 00:02:18]} 19. Bg3
{[%clk 00:11:49]} {[%emt 00:00:33]} e5 {[%clk 00:10:12]} {[%emt 00:00:10]} 20.
Nf3 {[%clk 00:10:34]} {[%emt 00:01:24]} Nc4 {[%clk 00:05:42]} {[%emt 00:04:41]}
21. b3 {[%clk 00:09:25]} {[%emt 00:01:20]} dxe4 {[%clk 00:05:47]} {[%emt
00:00:05]} 22. Qxd6 {[%clk 00:09:22]} {[%emt 00:00:12]} Nxd6 {[%clk 00:05:55]}
{[%emt 00:00:03]} 23. Nxe5 {[%clk 00:09:22]} {[%emt 00:00:11]} Nf5 {[%clk
00:05:06]} {[%emt 00:00:59]} 24. Nxc6 {[%clk 00:09:10]} {[%emt 00:00:22]} Bb7
{[%clk 00:05:13]} {[%emt 00:00:02]} 25. Nd4 {[%clk 00:09:08]} {[%emt 00:00:12]}
Nxd4 {[%clk 00:03:36]} {[%emt 00:01:48]} 26. cxd4 {[%clk 00:09:16]} {[%emt
00:00:02]} Rad8 {[%clk 00:03:30]} {[%emt 00:00:16]} 27. Be5 {[%clk 00:09:17]}
{[%emt 00:00:09]} Bd5 {[%clk 00:03:34]} {[%emt 00:00:05]} 28. b4 {[%clk
00:09:10]} {[%emt 00:00:17]} a4 {[%clk 00:03:35]} {[%emt 00:00:10]} 29. Bb1
{[%clk 00:08:56]} {[%emt 00:00:24]} Nd7 {[%clk 00:03:30]} {[%emt 00:00:15]} 30.
Rc7 {[%clk 00:08:35]} {[%emt 00:00:31]} Rf7 {[%clk 00:03:39]} 31. Rfc1 {[%clk
00:08:13]} {[%emt 00:00:31]} Kg8 {[%clk 00:03:33]} {[%emt 00:00:17]} 32. Bd6
{[%clk 00:07:34]} {[%emt 00:00:48]} Rf6 {[%clk 00:03:00]} {[%emt 00:00:45]} 33.
Bc5 {[%clk 00:07:37]} {[%emt 00:00:06]} Re6 {[%clk 00:02:55]} {[%emt 00:00:15]}
34. Re1 {[%clk 00:07:42]} {[%emt 00:00:05]} Nf6 {[%clk 00:02:55]} {[%emt
00:00:11]} 35. Be7 {[%clk 00:07:05]} {[%emt 00:00:47]} Re8 {[%clk 00:02:55]}
{[%emt 00:00:10]} 36. Bxf6 {[%clk 00:07:12]} {[%emt 00:00:03]} Rxf6 {[%clk
00:03:04]} {[%emt 00:00:01]} 37. Rc5 {[%clk 00:06:20]} {[%emt 00:01:01]} Rd6
{[%clk 00:02:50]} {[%emt 00:00:23]} 38. Rxd5 {[%clk 00:05:58]} {[%emt
00:00:33]} Rxd5 {[%clk 00:02:58]} {[%emt 00:00:03]} 39. Ba2 {[%clk 00:06:07]}
Red8 {[%clk 00:03:02]} {[%emt 00:00:06]} 40. Rxe4 {[%clk 00:06:15]} {[%emt
00:00:02]} Kf8 {[%clk 00:03:07]} {[%emt 00:00:04]} 41. Bxd5 {[%clk 00:06:20]}
{[%emt 00:00:06]} Rxd5 {[%clk 00:03:16]} 42. f3 {[%clk 00:06:20]} {[%emt
00:00:10]} Kf7 {[%clk 00:03:22]} {[%emt 00:00:04]} 43. Kf2 {[%clk 00:06:28]}
{[%emt 00:00:02]} Kf6 {[%clk 00:03:31]} {[%emt 00:00:01]} 44. Ke3 {[%clk
00:06:36]} {[%emt 00:00:02]} Rd7 {[%clk 00:03:35]} {[%emt 00:00:03]} 45. Re5
{[%clk 00:06:24]} {[%emt 00:00:25]} Rb7 {[%clk 00:03:26]} {[%emt 00:00:20]} 46.
Rc5 {[%clk 00:06:26]} {[%emt 00:00:07]} Ke6 {[%clk 00:02:50]} {[%emt 00:00:47]}
47. d5+ {[%clk 00:06:15]} {[%emt 00:00:20]} Kd6 {[%clk 00:02:59]} {[%emt
00:00:02]} 48. Rc6+ {[%clk 00:06:22]} {[%emt 00:00:03]} Kxd5 {[%clk 00:03:07]}
{[%emt 00:00:01]} 49. Rxg6 {[%clk 00:06:29]} {[%emt 00:00:02]} Rc7 {[%clk
00:03:12]} {[%emt 00:00:06]} 50. Kd3 {[%clk 00:06:31]} {[%emt 00:00:09]} Rc1
{[%clk 00:02:54]} {[%emt 00:00:28]} 51. Rxh6 {[%clk 00:06:33]} {[%emt
00:00:07]} Ra1 {[%clk 00:03:03]} {[%emt 00:00:02]} 52. Rh5+ {[%clk 00:06:29]}
{[%emt 00:00:14]} Kc6 {[%clk 00:03:12]} 53. Rc5+ {[%clk 00:06:37]} {[%emt
00:00:02]} Kb6 {[%clk 00:03:21]} {[%emt 00:00:01]} 54. Rc3 {[%clk 00:06:25]}
{[%emt 00:00:21]} Ra2 {[%clk 00:03:30]} {[%emt 00:00:01]} 55. g4 {[%clk
00:06:25]} {[%emt 00:00:10]} Rxh2 {[%clk 00:03:38]} {[%emt 00:00:02]} 56. Ke4
{[%clk 00:06:28]} {[%emt 00:00:07]} Rb2 {[%clk 00:03:36]} {[%emt 00:00:19]} 57.
Kf5 {[%clk 00:06:34]} Rb3 {[%clk 00:03:45]} 58. Rc1 {[%clk 00:06:28]} {[%emt
00:00:18]} Rxf3+ {[%clk 00:03:54]} 59. Kg6 {[%clk 00:06:35]} Rxa3 {[%clk
00:04:03]} {[%emt 00:00:01]} 60. g5 {[%clk 00:06:42]} {[%emt 00:00:02]} Rb3
{[%clk 00:04:10]} {[%emt 00:00:04]} 61. Kf7 {[%clk 00:06:22]} {[%emt 00:00:31]}
Rxb4 {[%clk 00:04:18]} 62. Rg1 {[%clk 00:06:30]} {[%emt 00:00:01]} Rc4 {[%clk
00:04:25]} {[%emt 00:00:05]} 63. g6 {[%clk 00:06:39]} Rc7+ {[%clk 00:04:32]}
{[%emt 00:00:04]} 64. Kf6 {[%clk 00:06:44]} {[%emt 00:00:05]} b4 {[%clk
00:04:40]} {[%emt 00:00:01]} 65. g7 {[%clk 00:06:51]} {[%emt 00:00:03]} Rxg7
{[%clk 00:04:47]} {[%emt 00:00:04]} 66. Rxg7 {[%clk 00:06:59]} {[%emt
00:00:02]} Kc5 {[%clk 00:04:56]} 67. Ke5 {[%clk 00:07:04]} {[%emt 00:00:05]}
Kc4 {[%clk 00:05:05]} {[%emt 00:00:02]} 68. Rc7+ {[%clk 00:07:11]} {[%emt
00:00:02]} Kb3 {[%clk 00:05:14]} {[%emt 00:00:01]} 69. Kd4 {[%clk 00:07:19]}
{[%emt 00:00:03]} a3 {[%clk 00:05:23]} 70. Kc5 {[%clk 00:07:24]} {[%emt
00:00:05]} a2 {[%clk 00:05:31]} {[%emt 00:00:03]} 71. Ra7 {[%clk 00:07:29]}
{[%emt 00:00:03]} Kb2 {[%clk 00:05:40]} {[%emt 00:00:02]} 72. Kxb4 {[%clk
00:07:36]} {[%emt 00:00:03]} a1=Q {[%clk 00:05:47]} {[%emt 00:00:02]} 73. Rxa1
{[%emt 00:00:02]} Kxa1 {[%emt 00:00:11]} 1/2-1/2

[Event "Snabb-SM för veteraner, 65+ 2019"]
[Site "Schackcentrum, Vegagatan 20, Gothenburg, Sweden"]
[Date "2019.10.05"]
[Round "6.8"]
[White "Degerfeldt, Sven"]
[Black "Olsson, Torgny"]
[Result "1-0"]
[TimeControl "15 minutes + 10 seconds per move from move one"]
[WhiteFideId "1717430"]
[BlackFideId "1717340"]
[WhiteElo "1822"]
[BlackElo "1716"]

1. d4 {[%clk 00:15:17]} {[%emt 00:00:02]} Nf6 {[%clk 00:15:18]} {[%emt
00:00:03]} 2. Nf3 {[%clk 00:15:25]} {[%emt 00:00:02]} g6 {[%clk 00:15:21]}
{[%emt 00:00:07]} 3. Bg5 {[%clk 00:15:31]} {[%emt 00:00:03]} Bg7 {[%clk
00:15:25]} {[%emt 00:00:06]} 4. e3 {[%clk 00:15:38]} {[%emt 00:00:02]} d5
{[%clk 00:14:58]} {[%emt 00:00:38]} 5. Nbd2 {[%clk 00:15:32]} {[%emt 00:00:15]}
O-O {[%clk 00:15:04]} {[%emt 00:00:04]} 6. h3 {[%clk 00:15:33]} {[%emt
00:00:09]} Bf5 {[%clk 00:14:39]} {[%emt 00:00:37]} 7. c4 {[%clk 00:14:54]}
{[%emt 00:00:47]} c6 {[%clk 00:14:32]} {[%emt 00:00:18]} 8. Bf4 {[%clk
00:14:36]} {[%emt 00:00:27]} Nbd7 {[%clk 00:14:09]} {[%emt 00:00:34]} 9. Be2
{[%clk 00:14:15]} {[%emt 00:00:31]} Qb6 {[%clk 00:13:34]} {[%emt 00:00:46]} 10.
b3 {[%clk 00:13:48]} {[%emt 00:00:36]} Rfe8 {[%clk 00:13:34]} {[%emt 00:00:10]}
11. O-O {[%clk 00:12:21]} {[%emt 00:01:37]} Rac8 {[%clk 00:12:22]} {[%emt
00:01:23]} 12. a3 {[%clk 00:11:06]} {[%emt 00:01:24]} a5 {[%clk 00:11:50]}
{[%emt 00:00:43]} 13. c5 {[%clk 00:11:07]} {[%emt 00:00:08]} Qd8 {[%clk
00:11:50]} {[%emt 00:00:11]} 14. b4 {[%clk 00:11:05]} {[%emt 00:00:12]} b6
{[%clk 00:11:57]} {[%emt 00:00:03]} 15. Ba6 {[%clk 00:10:50]} {[%emt 00:00:24]}
Ra8 {[%clk 00:11:56]} {[%emt 00:00:11]} 16. Bb7 {[%clk 00:10:52]} {[%emt
00:00:08]} bxc5 {[%clk 00:11:28]} {[%emt 00:00:38]} 17. Bxa8 {[%clk 00:10:54]}
{[%emt 00:00:08]} Qxa8 {[%clk 00:11:36]} {[%emt 00:00:02]} 18. bxc5 {[%clk
00:10:57]} {[%emt 00:00:07]} Ne4 {[%clk 00:11:37]} {[%emt 00:00:10]} 19. Nxe4
{[%emt 00:00:41]} dxe4 {[%clk 00:11:38]} {[%emt 00:00:02]} 20. Nd2 {[%clk
00:10:20]} {[%emt 00:00:22]} e5 {[%clk 00:11:41]} {[%emt 00:00:08]} 21. dxe5
{[%clk 00:10:20]} {[%emt 00:00:09]} Nxe5 {[%clk 00:11:50]} {[%emt 00:00:02]} 22.
Bxe5 {[%clk 00:09:46]} {[%emt 00:00:44]} Bxe5 {[%clk 00:11:53]} {[%emt
00:00:07]} 23. Rb1 {[%clk 00:09:33]} {[%emt 00:00:22]} Rd8 {[%clk 00:11:45]}
{[%emt 00:00:19]} 24. Qc2 {[%clk 00:09:32]} {[%emt 00:00:10]} Re8 {[%clk
00:10:42]} {[%emt 00:01:14]} 25. Nc4 {[%clk 00:09:17]} {[%emt 00:00:25]} Bc7
{[%clk 00:10:34]} {[%emt 00:00:18]} 26. Rfd1 {[%clk 00:09:12]} {[%emt
00:00:14]} Re7 {[%clk 00:09:32]} {[%emt 00:01:13]} 27. Nd6 {[%clk 00:09:06]}
{[%emt 00:00:16]} Bd7 {[%clk 00:07:20]} {[%emt 00:02:22]} 28. Rd4 {[%clk
00:08:29]} {[%emt 00:00:47]} Bxd6 {[%clk 00:07:10]} {[%emt 00:00:20]} 29. Rxd6
{[%clk 00:08:27]} {[%emt 00:00:11]} Qc8 {[%clk 00:07:05]} {[%emt 00:00:16]} 30.
Rbd1 {[%clk 00:08:28]} {[%emt 00:00:08]} Kg7 {[%clk 00:06:56]} {[%emt
00:00:20]} 31. Qc3+ {[%clk 00:08:33]} {[%emt 00:00:05]} Kh6 {[%clk 00:07:03]}
{[%emt 00:00:03]} 32. Qf6 {[%clk 00:08:02]} {[%emt 00:00:40]} Qe8 {[%clk
00:06:43]} {[%emt 00:00:30]} 33. g4 {[%clk 00:07:38]} {[%emt 00:00:34]} Re6
{[%clk 00:05:46]} {[%emt 00:01:07]} 34. Qh4+ {[%clk 00:07:18]} {[%emt
00:00:29]} Kg7 {[%clk 00:05:44]} {[%emt 00:00:13]} 35. Rxd7 {[%clk 00:07:26]}
{[%emt 00:00:03]} Qf8 {[%clk 00:05:41]} {[%emt 00:00:13]} 36. R1d6 {[%clk
00:07:14]} {[%emt 00:00:21]} Rxd6 {[%clk 00:05:33]} {[%emt 00:00:18]} 37. Rxd6
{[%clk 00:07:21]} {[%emt 00:00:03]} Qb8 {[%clk 00:05:24]} {[%emt 00:00:20]} 38.
Qf6+ {[%clk 00:07:20]} {[%emt 00:00:09]} Kh6 {[%clk 00:05:32]} {[%emt
00:00:03]} 39. Qf4+ {[%clk 00:06:46]} {[%emt 00:00:44]} Kg7 {[%clk 00:05:34]}
{[%emt 00:00:08]} 40. Rxg6+ {[%emt 00:00:40]} 1-0

[Event "Snabb-SM för veteraner, 65+ 2019"]
[Site "Schackcentrum, Vegagatan 20, Gothenburg, Sweden"]
[Date "2019.10.05"]
[Round "6.9"]
[White "Olesen, Christer"]
[Black "Svensson, Soren"]
[Result "0-1"]
[TimeControl "15 minutes + 10 seconds per move from move one"]
[WhiteFideId "1739069"]
[BlackFideId "1714937"]
[WhiteElo "1809"]
[BlackElo "1845"]

1. d4 {[%clk 00:15:16]} {[%emt 00:00:03]} d5 {[%clk 00:15:18]} {[%emt
00:00:03]} 2. Bf4 {[%clk 00:15:21]} {[%emt 00:00:04]} Nf6 {[%clk 00:15:23]}
{[%emt 00:00:06]} 3. e3 {[%clk 00:15:27]} {[%emt 00:00:04]} e6 {[%clk
00:15:30]} {[%emt 00:00:03]} 4. Nf3 {[%clk 00:15:29]} {[%emt 00:00:06]} c5
{[%clk 00:15:34]} {[%emt 00:00:06]} 5. c3 {[%clk 00:15:31]} {[%emt 00:00:08]}
Nc6 {[%clk 00:15:34]} {[%emt 00:00:10]} 6. Nbd2 {[%clk 00:15:04]} {[%emt
00:00:37]} b6 {[%clk 00:14:54]} {[%emt 00:00:50]} 7. Bb5 {[%clk 00:13:21]}
{[%emt 00:01:53]} Bd7 {[%clk 00:14:51]} {[%emt 00:00:14]} 8. Qe2 {[%clk
00:06:14]} {[%emt 00:07:16]} Be7 {[%clk 00:14:09]} {[%emt 00:00:52]} 9. Rd1
{[%clk 00:06:00]} {[%emt 00:00:24]} Qc8 {[%clk 00:10:35]} {[%emt 00:03:44]} 10.
Ba6 {[%clk 00:05:17]} {[%emt 00:00:54]} Qd8 {[%clk 00:10:24]} {[%emt 00:00:22]}
11. e4 {[%clk 00:04:14]} {[%emt 00:01:13]} Bc8 {[%clk 00:09:41]} {[%emt
00:00:53]} 12. Bb5 {[%clk 00:04:04]} {[%emt 00:00:21]} Bd7 {[%clk 00:09:39]}
{[%emt 00:00:11]} 13. e5 {[%clk 00:03:44]} {[%emt 00:00:29]} Nh5 {[%clk
00:09:07]} {[%emt 00:00:42]} 14. Be3 {[%clk 00:03:38]} {[%emt 00:00:17]} g5
{[%clk 00:07:13]} {[%emt 00:02:03]} 15. Bxc6 {[%clk 00:02:47]} {[%emt
00:01:01]} Bxc6 {[%clk 00:07:20]} {[%emt 00:00:03]} 16. Nxg5 {[%clk 00:02:47]}
{[%emt 00:00:10]} Ng7 {[%clk 00:06:11]} {[%emt 00:01:19]} 17. Ngf3 {[%clk
00:02:28]} {[%emt 00:00:29]} Nf5 {[%clk 00:06:09]} {[%emt 00:00:13]} 18. Nf1
{[%clk 00:02:00]} {[%emt 00:00:37]} Rg8 {[%clk 00:06:00]} {[%emt 00:00:20]} 19.
Ng3 {[%clk 00:02:07]} {[%emt 00:00:03]} Nxe3 {[%clk 00:05:41]} {[%emt
00:00:29]} 20. Qxe3 {[%clk 00:02:13]} {[%emt 00:00:05]} Bb5 {[%clk 00:04:58]}
{[%emt 00:00:53]} 21. b3 {[%clk 00:02:11]} {[%emt 00:00:12]} Qc7 {[%clk
00:04:45]} {[%emt 00:00:23]} 22. Rc1 {[%clk 00:02:05]} {[%emt 00:00:15]} Rc8
{[%clk 00:04:31]} {[%emt 00:00:24]} 23. Qh6 {[%clk 00:00:53]} {[%emt 00:01:22]}
Bd3 {[%clk 00:03:11]} {[%emt 00:01:30]} 24. Kd2 {[%clk 00:00:44]} {[%emt
00:00:20]} cxd4 {[%clk 00:03:04]} {[%emt 00:00:16]} 25. Kxd3 {[%clk 00:00:36]}
{[%emt 00:00:18]} dxc3 {[%clk 00:03:06]} {[%emt 00:00:08]} 26. Qxh7 {[%clk
00:00:29]} {[%emt 00:00:18]} Rg4 {[%clk 00:02:54]} {[%emt 00:00:22]} 27. Rc2
{[%clk 00:00:28]} {[%emt 00:00:11]} Qc5 {[%clk 00:02:43]} {[%emt 00:00:20]} 28.
Ne2 {[%clk 00:00:15]} {[%emt 00:00:24]} Qb5+ {[%clk 00:02:46]} {[%emt
00:00:07]} 29. Ke3 {[%clk 00:00:17]} {[%emt 00:00:09]} Re4+ {[%clk 00:02:53]}
{[%emt 00:00:02]} 30. Qxe4 {[%clk 00:00:15]} {[%emt 00:00:11]} dxe4 {[%clk
00:03:01]} {[%emt 00:00:02]} 31. Kxe4 {[%clk 00:00:24]} {[%emt 00:00:01]} Qb4+
{[%clk 00:02:50]} {[%emt 00:00:21]} 32. Nfd4 {[%clk 00:00:20]} {[%emt
00:00:14]} f5+ {[%clk 00:02:13]} {[%emt 00:00:47]} 33. Kf4 {[%clk 00:00:12]}
{[%emt 00:00:18]} Bf8 {[%clk 00:02:10]} {[%emt 00:00:20]} 0-1

[Event "Snabb-SM för veteraner, 65+ 2019"]
[Site "Schackcentrum, Vegagatan 20, Gothenburg, Sweden"]
[Date "2019.10.06"]
[Round "7.1"]
[White "Kvarby, Anders"]
[Black "Stroem, Leif"]
[Result "1/2-1/2"]
[TimeControl "15 minutes + 10 seconds per move from move one"]
[WhiteFideId "1746596"]
[BlackFideId "1709410"]
[WhiteElo "1887"]
[BlackElo "2014"]

1. d4 {[%clk 00:15:17]} {[%emt 00:00:02]} g6 {[%clk 00:15:19]} {[%emt
00:00:02]} 2. c4 {[%clk 00:15:23]} {[%emt 00:00:03]} Bg7 {[%clk 00:15:28]}
{[%emt 00:00:01]} 3. Nc3 {[%clk 00:15:24]} {[%emt 00:00:09]} d6 {[%clk
00:15:37]} {[%emt 00:00:02]} 4. e4 {[%clk 00:15:16]} {[%emt 00:00:17]} e5
{[%clk 00:15:40]} {[%emt 00:00:08]} 5. d5 {[%clk 00:15:15]} {[%emt 00:00:10]}
f5 {[%clk 00:15:45]} {[%emt 00:00:06]} 6. exf5 {[%clk 00:15:03]} {[%emt
00:00:22]} Bxf5 {[%clk 00:15:54]} {[%emt 00:00:02]} 7. Nge2 {[%clk 00:15:03]}
{[%emt 00:00:09]} Nf6 {[%clk 00:15:14]} {[%emt 00:00:50]} 8. Ng3 {[%clk
00:15:07]} {[%emt 00:00:05]} Nbd7 {[%clk 00:13:21]} {[%emt 00:02:04]} 9. Bd3
{[%clk 00:15:01]} {[%emt 00:00:16]} Bxd3 {[%clk 00:13:22]} {[%emt 00:00:09]} 10.
Qxd3 {[%clk 00:15:08]} {[%emt 00:00:02]} Nc5 {[%clk 00:13:23]} {[%emt
00:00:09]} 11. Qc2 {[%clk 00:14:53]} {[%emt 00:00:25]} Qe7 {[%clk 00:12:52]}
{[%emt 00:00:41]} 12. Bg5 {[%clk 00:13:46]} {[%emt 00:01:17]} O-O-O {[%clk
00:12:47]} {[%emt 00:00:16]} 13. b4 {[%clk 00:13:47]} {[%emt 00:00:08]} Ncd7
{[%clk 00:12:48]} {[%emt 00:00:08]} 14. O-O {[%clk 00:13:18]} {[%emt 00:00:39]}
h6 {[%clk 00:12:56]} {[%emt 00:00:03]} 15. Be3 {[%clk 00:13:07]} {[%emt
00:00:20]} e4 {[%clk 00:11:20]} {[%emt 00:01:47]} 16. Rac1 {[%clk 00:12:49]}
{[%emt 00:00:28]} Ne5 {[%clk 00:11:24]} {[%emt 00:00:06]} 17. Ncxe4 {[%clk
00:12:40]} {[%emt 00:00:18]} Nfg4 {[%clk 00:10:10]} {[%emt 00:01:25]} 18. Bxa7
{[%clk 00:12:22]} {[%emt 00:00:28]} h5 {[%clk 00:10:18]} {[%emt 00:00:02]} 19.
h3 {[%clk 00:12:00]} {[%emt 00:00:32]} h4 {[%clk 00:10:27]} {[%emt 00:00:02]}
20. Ne2 {[%clk 00:11:54]} {[%emt 00:00:15]} Bh6 {[%clk 00:10:29]} {[%emt
00:00:08]} 21. f4 {[%clk 00:11:10]} {[%emt 00:00:53]} Ne3 {[%clk 00:10:29]}
{[%emt 00:00:10]} 22. Bxe3 {[%clk 00:11:18]} {[%emt 00:00:02]} Rde8 {[%clk
00:10:24]} {[%emt 00:00:16]} 23. Bd4 {[%clk 00:11:00]} {[%emt 00:00:27]} Nf7
{[%clk 00:09:27]} {[%emt 00:01:07]} 24. Bxh8 {[%clk 00:10:44]} {[%emt
00:00:26]} Qxe4 {[%clk 00:09:36]} {[%emt 00:00:01]} 25. Qxe4 {[%clk 00:10:45]}
{[%emt 00:00:09]} Rxe4 {[%clk 00:09:45]} 26. Rc2 {[%clk 00:10:21]} {[%emt
00:00:34]} Nxh8 {[%clk 00:09:52]} {[%emt 00:00:03]} 27. f5 {[%clk 00:10:16]}
{[%emt 00:00:15]} gxf5 {[%clk 00:09:32]} {[%emt 00:00:31]} 28. Rxf5 {[%clk
00:10:24]} {[%emt 00:00:02]} Ng6 {[%clk 00:09:41]} 29. Rf6 {[%clk 00:09:22]}
{[%emt 00:01:12]} Be3+ {[%clk 00:09:49]} {[%emt 00:00:02]} 30. Kf1 {[%emt
00:00:10]} Ne5 31. Re6 {[%clk 00:09:01]} {[%emt 00:00:29]} Kd7 {[%clk
00:09:53]} {[%emt 00:00:17]} 32. a3 {[%clk 00:08:37]} {[%emt 00:00:34]} b6
{[%clk 00:09:49]} {[%emt 00:00:15]} 33. c5 {[%clk 00:08:38]} {[%emt 00:00:09]}
bxc5 {[%clk 00:09:23]} {[%emt 00:00:36]} 34. bxc5 Bxc5 {[%clk 00:09:31]} 35.
Rh6 {[%clk 00:07:41]} {[%emt 00:01:09]} Nc4 {[%clk 00:09:13]} {[%emt 00:00:29]}
36. Rh7+ {[%emt 00:00:29]} Kd8 1/2-1/2